[Event "POL-chT DMP Ekstraliga 2019"]
[Site "Katowice"]
[Date "2019.08.29"]
[Round "2.5"]
[White "Plat, Vojtech"]
[Black "Szustakowski, Antoni"]
[Result "1-0"]
[ECO "D31"]
[WhiteElo "2561"]
[BlackElo "2256"]
[Annotator "ChessBase"]
[PlyCount "117"]
[EventDate "2019.08.28"]
[EventType "team-tourn"]
[EventCountry "POL"]
[SourceTitle "playchess.com"]
[Source "ChessBase"]
[SourceQuality "1"]
[TimeControl "40/5400+30:1800+30"]

1. d4 d5 {[%emt 0:00:00]} 2. c4 {[%emt 0:11:09]} e6 {[%emt 0:00:00]} 3. Nc3 {[%emt 0:01:04]} c6 {[%emt 0:00:00]} 4. Nf3 {[%emt 0:00:30]} dxc4 {[%emt 0:00:10]} 5. a4 {[%emt 0:00:04]} Bb4 {[%emt 0:00:00]} 6. e3 {[%emt 0:01:20]} b5 {[%emt 0:00:17]} 7. Bd2 {[%emt 0:00:23]} a5 8. axb5 {[%emt 0:00:13]} Bxc3 {[%emt 0:00:26]} 9. Bxc3 {[%emt 0:00:19]} cxb5 {[%emt 0:00:07]} 10. b3 {[%emt 0:01:58]} Bb7 {[%emt 0:00:00]} 11. bxc4 {[%emt 0:00:30]} b4 {[%emt 0:00:19]} 12. Bb2 {[%emt 0:00:49]} Nf6 {[%emt 0:00:12]} 13. Bd3 {[%emt 0:00:30]} O-O {[%emt 0:00:20]} 14. O-O {[%emt 0:00:00]} Nbd7 {[%emt 0:00:38]} 15. Nd2 {[%emt 0:12:55]} Re8 {[%emt 0:13:20]} 16. Bc2 {[%emt 0:00:18]} e5 {[%emt 0:00:30]} 17. d5 {[%emt 0:00:30]} Qe7 {[%emt 0:12:59]} 18. Ba4 {[%emt 0:08:26]} Rec8 {[%emt 0:14:16]} 19. Bb5 {[%emt 0:09:15]} Nc5 20. Ra2 {[%emt 0:01:12]} Nd3 {[%emt 0:09:59]} 21. Ba1 {[%emt 0:00:30]} Nc5 {[%emt 0:00:04]} 22. Qb1 {[%emt 0:11:30]} Ne8 {[%emt 0:14:56]} 23. Ba4 {[%emt 0:00:30]} Nxa4 {[%emt 0:00:30]} 24. Rxa4 {[%emt 0:00:30]} Nd6 {[%emt 0:00:30]} 25. Rc1 {[%emt 0:16:59]} Qe8 {[%emt 0:07:21]} 26. Qa2 {[%emt 0:00:35]} Bxd5 {[%emt 0:07:52]} 27. Rxa5 {[%emt 0:00:30]} Rxa5 {[%emt 0:00:30]} 28. Qxa5 {[%emt 0:00:30]} Qc6 {[%emt 0:00:30]} 29. c5 {[%emt 0:00:30]} Bxg2 {[%emt 0:00:30]} 30. cxd6 {[%emt 0:00:30]} Qxc1+ {[%emt 0:03:20]} 31. Kxg2 {[%emt 0:14:13]} Qc6+ {[%emt 0:01:45]} 32. Nf3 {[%emt 0:01:20]} Qxd6 {[%emt 0:00:30]} 33. Nxe5 {[%emt 0:00:30]} Rb8 {[%emt 0:00:30]} 34. e4 {[%emt 0:00:30]} f6 {[%emt 0:00:30]} 35. Nc4 {[%emt 0:00:30]} Qe6 {[%emt 0:00:30]} 36. Qd5 {[%emt 0:00:30]} Re8 {[%emt 0:00:30]} 37. Kf3 {[%emt 0:00:30]} Qxd5 {[%emt 0:00:30]} 38. exd5 {[%emt 0:00:30]} Re1 {[%emt 0:00:30]} 39. Bd4 {[%emt 0:00:30]} b3 {[%emt 0:00:30]} 40. Nd2 {[%emt 0:00:30]} Rh1 {[%emt 0:00:30]} 41. Nxb3 {[%emt 0:30:30]} Rxh2 {[%emt 0:30:30]} 42. Be3 {[%emt 0:00:30]} Rh4 {[%emt 0:00:30]} 43. d6 {[%emt 0:00:30]} Kf7 {[%emt 0:00:30]} 44. Nc5 {[%emt 0:00:30]} Rc4 {[%emt 0:00:30]} 45. Ke2 {[%emt 0:00:30]} Rc2+ {[%emt 0:00:30]} 46. Kd3 {[%emt 0:00:30]} Ra2 {[%emt 0:00:30]} 47. Kc4 {[%emt 0:00:00]} h5 {[%emt 0:00:00]} 48. Kd5 {[%emt 0:00:00]} h4 {[%emt 0:00:00]} 49. d7 Ke7 {[%emt 0:00:00]} 50. Bf4 {[%emt 0:00:00]} Ra8 {[%emt 0:00:00]} 51. Bd6+ {[%emt 0:00:00]} Kf7 {[%emt 0:00:00]} 52. Nb7 {[%emt 0:00:00]} g5 {[%emt 0:00:00]} 53. d8=Q {[%emt 0:00:00]} Rxd8 {[%emt 0:00:00]} 54. Nxd8+ {[%emt 0:00:00]} Kg6 {[%emt 0:00:00]} 55. Ke4 {[%emt 0:00:00]} f5+ {[%emt 0:00:00]} 56. Kf3 {[%emt 0:00:00]} Kf6 {[%emt 0:00:00]} 57. Bh2 {[%emt 0:00:00]} Kg6 {[%emt 0:00:00]} 58. Ne6 {[%emt 0:00:00]} Kf6 {[%emt 0:00:00]} 59. Nxg5 {[%emt 0:00:00]} 1-0

[Event "POL-chT DMP Ekstraliga 2019"]
[Site "Katowice"]
[Date "2019.08.29"]
[Round "2.6"]
[White "Antolak, Julia"]
[Black "Majdan, Joanna"]
[Result "1/2-1/2"]
[ECO "B06"]
[WhiteElo "2240"]
[BlackElo "2368"]
[Annotator "NA"]
[PlyCount "122"]
[EventDate "2019.08.28"]
[EventType "team-tourn"]
[EventCountry "POL"]
[SourceTitle "playchess.com"]
[Source "ChessBase"]
[SourceQuality "1"]
[TimeControl "40/5400+30:1800+30"]

1. e4 g6 2. d4 {[%emt 0:00:00]} Bg7 {[%emt 0:00:00]} 3. Nc3 {[%emt 0:00:46]} d6 {[%emt 0:00:46]} 4. Be3 {[%emt 0:00:36]} c6 {[%emt 0:00:44]} 5. Qd2 {[%emt 0:02:41]} Nd7 {[%emt 0:01:26]} 6. h4 h5 {[%emt 0:00:48]} 7. f3 {[%emt 0:00:59]} b5 {[%emt 0:01:23]} 8. Nh3 Nb6 9. Bd3 {[%emt 0:07:34]} Rb8 {[%emt 0:03:59]} 10. Ne2 {[%emt 0:03:53]} Nc4 {[%emt 0:06:06]} 11. Bxc4 {[%emt 0:17:33]} bxc4 {[%emt 0:04:02]} 12. O-O-O {[%emt 0:01:46]} Qb6 {[%emt 0:00:22]} 13. c3 {[%emt 0:01:54]} Qa5 {[%emt 0:00:53]} 14. Kb1 Nf6 15. Ng5 {[%emt 0:16:12]} Nd7 {[%emt 0:05:04]} 16. Rc1 {[%emt 0:07:35]} Nb6 {[%emt 0:02:23]} 17. Rc2 {[%emt 0:02:41]} Na4 {[%emt 0:01:57]} 18. Qe1 {[%emt 0:10:42]} Bd7 {[%emt 0:12:19]} 19. Bc1 {[%emt 0:01:32]} c5 {[%emt 0:06:23]} 20. Qd2 {[%emt 0:02:09]} cxd4 {[%emt 0:08:56]} 21. cxd4 {[%emt 0:03:07]} Qb6 {[%emt 0:02:21]} 22. Rxc4 {[%emt 0:03:12]} Bb5 {[%emt 0:00:29]} 23. Rc2 {[%emt 0:02:07]} Bxe2 {[%emt 0:06:58]} 24. Qxe2 {[%emt 0:00:04]} Qxd4 {[%emt 0:00:25]} 25. Ka1 {[%emt 0:06:35]} Qb4 {[%emt 0:07:25]} 26. f4 {[%emt 0:03:17]} O-O {[%emt 0:01:55]} 27. Rh3 {[%emt 0:00:48]} Rbc8 {[%emt 0:02:27]} 28. Rb3 {[%emt 0:01:16]} Rxc2 {[%emt 0:05:24]} 29. Qxc2 {[%emt 0:00:04]} Qe1 {[%emt 0:00:39]} 30. Nf3 Qf1 {[%emt 0:00:51]} 31. e5 {[%emt 0:01:54]} dxe5 {[%emt 0:06:45]} 32. fxe5 {[%emt 0:02:25]} Nb6 {[%emt 0:03:17]} 33. Kb1 {[%emt 0:01:30]} Rd8 34. e6 f5 {[%emt 0:02:39]} 35. Ng5 {[%emt 0:01:05]} Rc8 {[%emt 0:01:52]} 36. Qd2 {[%emt 0:00:05]} Nc4 {[%emt 0:00:37]} 37. Qf4 {[%emt 0:00:17]} Qd1 {[%emt 0:01:41]} 38. Rb8 {[%emt 0:01:08]} Na3+ {[%emt 0:02:05]} 39. Ka1 {[%emt 0:01:24]} Nc2+ {[%emt 0:02:05]} 40. Kb1 {[%emt 0:00:00]} Na3+ 41. Ka1 {[%emt 0:02:20]} Qxc1+ {[%emt 0:03:58]} 42. Qxc1 {[%emt 0:00:22]} Rxb8 {[%emt 0:00:02]} 43. Nh3 {[%emt 0:04:25]} Bxb2+ {[%emt 0:05:22]} 44. Qxb2 {[%emt 0:00:08]} Rxb2 {[%emt 0:00:01]} 45. Kxb2 {[%emt 0:00:07]} Nb5 {[%emt 0:00:08]} 46. Nf4 {[%emt 0:02:09]} Kg7 47. Nd5 {[%emt 0:08:00]} Nd4 {[%emt 0:00:16]} 48. Nxe7 {[%emt 0:00:50]} Nxe6 {[%emt 0:00:07]} 49. Nc6 {[%emt 0:04:26]} Nf4 {[%emt 0:02:53]} 50. g3 {[%emt 0:01:02]} Ne2 {[%emt 0:00:11]} 51. Nxa7 {[%emt 0:00:04]} Nxg3 {[%emt 0:00:03]} 52. Nc6 {[%emt 0:00:49]} Kf6 {[%emt 0:01:48]} 53. a4 {[%emt 0:01:22]} Ke6 {[%emt 0:05:14]} 54. Kc2 {[%emt 0:01:36]} Ne2 {[%emt 0:03:07]} 55. a5 {[%emt 0:04:13]} Kd6 {[%emt 0:00:24]} 56. Nd8 {[%emt 0:00:11]} Nd4+ {[%emt 0:02:18]} 57. Kc3 {[%emt 0:03:20]} Nb5+ {[%emt 0:02:22]} 58. Kc4 {[%emt 0:00:24]} Nc7 {[%emt 0:01:00]} 59. Kd4 {[%emt 0:01:09]} Nb5+ {[%emt 0:00:27]} 60. Kc4 {[%emt 0:00:19]} Nc7 {[%emt 0:00:03]} 61. Kd4 Nd5 {Kc3} 1/2-1/2

[Event "POL-chT DMP Ekstraliga 2019"]
[Site "Katowice"]
[Date "2019.08.29"]
[Round "2.9"]
[White "Kanarek, Marcel"]
[Black "Skawinski, Arkadiusz"]
[Result "1/2-1/2"]
[ECO "A06"]
[WhiteElo "2493"]
[BlackElo "2398"]
[Annotator "ChessBase"]
[PlyCount "53"]
[EventDate "2019.08.28"]
[EventType "team-tourn"]
[EventCountry "POL"]
[SourceTitle "playchess.com"]
[Source "ChessBase"]
[SourceQuality "1"]
[TimeControl "40/5400+30:1800+30"]

1. Nf3 {[%emt 0:00:00]} d5 {[%emt 0:00:00]} 2. g3 {[%emt 0:00:00]} Nf6 {[%emt 0:00:00]} 3. Bg2 {[%emt 0:00:00]} e6 {[%emt 0:00:00]} 4. O-O {[%emt 0:00:33]} Be7 {[%emt 0:00:00]} 5. d4 {[%emt 0:00:06]} O-O {[%emt 0:00:00]} 6. c4 {[%emt 0:00:16]} dxc4 {[%emt 0:00:00]} 7. Ne5 {[%emt 0:00:41]} Nc6 {[%emt 0:00:34]} 8. Nxc6 {[%emt 0:01:04]} bxc6 {[%emt 0:00:04]} 9. Na3 {[%emt 0:00:06]} Bxa3 {[%emt 0:01:59]} 10. bxa3 {[%emt 0:00:04]} Rb8 {[%emt 0:02:35]} 11. Qa4 {[%emt 0:02:34]} Rb6 {[%emt 0:13:00]} 12. Qxc4 {[%emt 0:05:22]} Ba6 {[%emt 0:00:28]} 13. Qc2 Qxd4 {[%emt 0:31:15]} 14. Be3 {[%emt 0:03:05]} Rb2 {[%emt 0:00:08]} 15. Qxc6 {[%emt 0:36:50]} Qc4 {[%emt 0:00:10]} 16. Bxa7 {[%emt 0:08:25]} Nd5 {[%emt 0:01:13]} 17. Qxc4 {[%emt 0:17:37]} Bxc4 {[%emt 0:00:08]} 18. Rfc1 {[%emt 0:00:34]} Bxe2 {[%emt 0:01:05]} 19. Bxd5 {[%emt 0:02:32]} exd5 {[%emt 0:00:05]} 20. Rxc7 {[%emt 0:00:08]} Bc4 {[%emt 0:01:58]} 21. a4 {[%emt 0:02:50]} h6 {[%emt 0:06:50]} 22. a5 {[%emt 0:03:41]} Re8 {[%emt 0:27:08]} 23. a4 {[%emt 0:05:20]} Ree2 {[%emt 0:02:02]} 24. Bd4 {[%emt 0:07:07]} Rbd2 {[%emt 0:00:37]} 25. Be3 {[%emt 0:01:20]} Ra2 {[%emt 0:00:48]} 26. Rxa2 {[%emt 0:01:26]} Rxa2 {[%emt 0:00:06]} 27. Kg2 {[%emt 0:01:09]} 1/2-1/2

[Event "POL-chT DMP Ekstraliga 2019"]
[Site "Katowice"]
[Date "2019.08.29"]
[Round "2.10"]
[White "Luch, Michal"]
[Black "Janik, Igor"]
[Result "0-1"]
[ECO "E12"]
[WhiteElo "2393"]
[BlackElo "2483"]
[Annotator "ChessBase"]
[PlyCount "82"]
[EventDate "2019.08.28"]
[EventType "team-tourn"]
[EventCountry "POL"]
[SourceTitle "playchess.com"]
[Source "ChessBase"]
[SourceQuality "1"]
[TimeControl "40/5400+30:1800+30"]

1. d4 {[%emt 0:00:00]} Nf6 {[%emt 0:00:00]} 2. c4 {[%emt 0:00:00]} e6 {[%emt 0:00:00]} 3. Nf3 {[%emt 0:00:08]} b6 {[%emt 0:00:01]} 4. a3 {[%emt 0:00:38]} Bb7 {[%emt 0:00:34]} 5. Nc3 {[%emt 0:00:08]} d5 {[%emt 0:00:22]} 6. cxd5 {[%emt 0:00:49]} Nxd5 {[%emt 0:00:09]} 7. Qc2 {[%emt 0:06:26]} Be7 {[%emt 0:00:27]} 8. e4 {[%emt 0:02:35]} Nxc3 {[%emt 0:00:09]} 9. bxc3 {[%emt 0:00:02]} O-O {[%emt 0:00:15]} 10. Bd3 {[%emt 0:06:34]} c5 {[%emt 0:00:04]} 11. O-O {[%emt 0:02:37]} cxd4 {[%emt 0:00:09]} 12. cxd4 {[%emt 0:00:08]} Nc6 {[%emt 0:00:45]} 13. Bb2 {[%emt 0:03:52]} Rc8 {[%emt 0:00:23]} 14. Qe2 {[%emt 0:03:12]} Na5 {[%emt 0:00:42]} 15. Rad1 {[%emt 0:02:46]} Qd7 {[%emt 0:00:06]} 16. Bb5 Bc6 {[%emt 0:06:10]} 17. Ba6 {[%emt 0:03:55]} Bb7 {[%emt 0:01:15]} 18. Bb5 {[%emt 0:00:19]} Qd6 {[%emt 0:01:25]} 19. Rfe1 {[%emt 0:06:57]} Bc6 {[%emt 0:05:07]} 20. Ba6 {[%emt 0:02:36]} Ba4 {[%emt 0:00:39]} 21. Rd2 {[%emt 0:05:54]} Rcd8 {[%emt 0:01:08]} 22. d5 {[%emt 0:21:40]} exd5 {[%emt 0:16:09]} 23. Rxd5 {[%emt 0:03:51]} Qg6 {[%emt 0:00:26]} 24. Bd3 {[%emt 0:01:58]} Bb3 {[%emt 0:01:57]} 25. Rf5 {[%emt 0:05:55]} Qd6 {[%emt 0:02:42]} 26. Bb1 {[%emt 0:06:08]} g6 {[%emt 0:08:18]} 27. Nd4 {[%emt 0:04:19]} Bc4 {[%emt 0:05:01]} 28. Qe3 {[%emt 0:04:06]} f6 {[%emt 0:00:33]} 29. Rf3 {[%emt 0:05:48]} Qe5 {[%emt 0:03:40]} 30. Rf5 {[%emt 0:00:54]} Qc7 {[%emt 0:00:45]} 31. Qh6 {[%emt 0:00:41]} gxf5 {[%emt 0:03:42]} 32. Nxf5 {[%emt 0:00:02]} Rf7 {[%emt 0:00:17]} 33. h4 {[%emt 0:00:58]} Nc6 {[%emt 0:04:10]} 34. Rc1 {[%emt 0:00:29]} b5 {[%emt 0:00:44]} 35. Qh5 {[%emt 0:00:05]} Bf8 {[%emt 0:00:40]} 36. Rc3 {[%emt 0:00:56]} Ne5 {[%emt 0:01:10]} 37. Rg3+ {[%emt 0:00:13]} Kh8 {[%emt 0:01:19]} 38. f4 {[%emt 0:00:45]} Nd3 {[%emt 0:01:21]} 39. Qg4 {[%emt 0:00:33]} Bc5+ {[%emt 0:00:11]} 40. Bd4 {[%emt 0:00:00]} Bxd4+ {[%emt 0:00:00]} 41. Nxd4 {[%emt 0:00:36]} Qb6 {[%emt 0:00:23]} 0-1

[Event "POL-chT DMP Ekstraliga 2019"]
[Site "Katowice"]
[Date "2019.08.29"]
[Round "2.11"]
[White "Tomczak, Mikolaj"]
[Black "Butkiewicz, Lukasz"]
[Result "1/2-1/2"]
[ECO "A05"]
[WhiteElo "2432"]
[BlackElo "2436"]
[Annotator "NA"]
[PlyCount "58"]
[EventDate "2019.08.28"]
[EventType "team-tourn"]
[EventCountry "POL"]
[SourceTitle "playchess.com"]
[Source "ChessBase"]
[SourceQuality "1"]
[TimeControl "40/5400+30:1800+30"]

1. Nf3 {[%emt 0:00:00]} Nf6 {[%emt 0:00:00]} 2. g3 {[%emt 0:00:00]} b5 {[%emt 0:00:23]} 3. Bg2 {[%emt 0:00:00]} Bb7 {[%emt 0:00:09]} 4. O-O {[%emt 0:00:13]} e6 {[%emt 0:01:19]} 5. d3 {[%emt 0:00:15]} Be7 {[%emt 0:01:28]} 6. e4 {[%emt 0:00:20]} d6 {[%emt 0:06:20]} 7. Nbd2 {[%emt 0:02:42]} c5 {[%emt 0:03:51]} 8. a4 {[%emt 0:02:42]} b4 {[%emt 0:00:47]} 9. Nc4 {[%emt 0:00:51]} O-O {[%emt 0:03:00]} 10. Re1 {[%emt 0:05:34]} a5 11. Bf4 {[%emt 0:10:03]} e5 {[%emt 0:06:26]} 12. Bg5 {[%emt 0:00:21]} h6 {[%emt 0:03:07]} 13. Bxf6 {[%emt 0:01:13]} Bxf6 {[%emt 0:00:18]} 14. Nfd2 {[%emt 0:01:48]} Nc6 {[%emt 0:01:31]} 15. Nf1 {[%emt 0:01:33]} g6 {[%emt 0:02:47]} 16. Nfe3 {[%emt 0:02:15]} Bg7 {[%emt 0:02:27]} 17. h4 {[%emt 0:08:03]} h5 {[%emt 0:01:48]} 18. c3 {[%emt 0:11:52]} Ne7 {[%emt 0:05:52]} 19. Bf3 {[%emt 0:03:45]} Ra6 {[%emt 0:03:26]} 20. Rf1 {[%emt 0:09:20]} Qa8 {[%emt 0:03:02]} 21. Nd2 {[%emt 0:03:50]} d5 {[%emt 0:07:36]} 22. exd5 {[%emt 0:02:05]} Nxd5 {[%emt 0:00:08]} 23. Nxd5 {[%emt 0:14:05]} Bxd5 {[%emt 0:00:05]} 24. Be4 {[%emt 0:03:32]} Rd8 {[%emt 0:03:45]} 25. Qc2 {[%emt 0:02:36]} f5 {[%emt 0:02:55]} 26. Bxd5+ {[%emt 0:00:08]} Qxd5 {[%emt 0:00:09]} 27. Rad1 {[%emt 0:01:15]} Kh8 {[%emt 0:06:35]} 28. Nc4 {[%emt 0:00:54]} Rf8 {[%emt 0:04:13]} 29. Qe2 {[%emt 0:02:21]} bxc3 {[%emt 0:07:40]} 1/2-1/2

[Event "POL-chT DMP Ekstraliga 2019"]
[Site "Katowice"]
[Date "2019.08.29"]
[Round "2.12"]
[White "Bartel, Marta"]
[Black "Cyfka, Karina"]
[Result "1/2-1/2"]
[ECO "A50"]
[WhiteElo "2244"]
[BlackElo "2413"]
[Annotator "NA"]
[PlyCount "88"]
[EventDate "2019.08.28"]
[EventType "team-tourn"]
[EventCountry "POL"]
[SourceTitle "playchess.com"]
[Source "ChessBase"]
[SourceQuality "1"]
[TimeControl "40/5400+30:1800+30"]

1. d4 {[%emt 0:00:00]} Nf6 {[%emt 0:00:00]} 2. c4 {[%emt 0:00:00]} b6 {[%emt 0:00:49]} 3. Nf3 {[%emt 0:00:18]} Bb7 {[%emt 0:10:20]} 4. Nc3 d5 {[%emt 0:00:17]} 5. cxd5 {[%emt 0:05:10]} Nxd5 6. Qc2 {[%emt 0:01:21]} e6 {[%emt 0:00:39]} 7. e4 {[%emt 0:01:41]} Nxc3 {[%emt 0:00:37]} 8. bxc3 {[%emt 0:00:00]} Be7 {[%emt 0:02:10]} 9. Bd3 {[%emt 0:06:32]} c5 {[%emt 0:02:03]} 10. O-O {[%emt 0:04:13]} O-O {[%emt 0:16:17]} 11. Bb2 {[%emt 0:00:51]} Qc7 {[%emt 0:02:36]} 12. Qe2 {[%emt 0:04:50]} Rc8 {[%emt 0:02:43]} 13. Rfd1 {[%emt 0:00:20]} c4 {[%emt 0:02:09]} 14. Bc2 {[%emt 0:18:00]} Nd7 {[%emt 0:06:30]} 15. Bc1 {[%emt 0:08:28]} b5 {[%emt 0:05:05]} 16. Bg5 {[%emt 0:18:02]} Ba3 {[%emt 0:00:59]} 17. Rab1 {[%emt 0:00:46]} a6 {[%emt 0:02:51]} 18. Bd2 {[%emt 0:03:53]} Nf8 {[%emt 0:01:37]} 19. Qe3 Be7 {[%emt 0:02:00]} 20. h4 {[%emt 0:03:50]} Bc6 {[%emt 0:01:29]} 21. h5 {[%emt 0:04:41]} h6 {[%emt 0:02:11]} 22. Ne5 {[%emt 0:04:18]} Be8 23. Qh3 Bd6 {[%emt 0:05:08]} 24. Ng4 {[%emt 0:02:17]} Bf4 {[%emt 0:04:42]} 25. e5 {[%emt 0:00:09]} Bxd2 {[%emt 0:00:04]} 26. Rxd2 {[%emt 0:00:01]} Qe7 {[%emt 0:00:50]} 27. f4 {[%emt 0:01:54]} Rab8 {[%emt 0:01:07]} 28. Rf2 b4 {[%emt 0:04:13]} 29. Rxb4 {[%emt 0:03:40]} Rxb4 {[%emt 0:00:34]} 30. cxb4 {[%emt 0:00:01]} Qxb4 {[%emt 0:00:51]} 31. Qe3 Ba4 32. a3 {[%emt 0:05:37]} Qb5 {[%emt 0:03:14]} 33. Kh2 {[%emt 0:01:56]} Bxc2 {[%emt 0:05:22]} 34. Rxc2 {[%emt 0:00:01]} Nd7 {[%emt 0:00:47]} 35. Qe2 Qd5 {[%emt 0:04:11]} 36. Qe3 {[%emt 0:03:17]} Qb5 {[%emt 0:02:15]} 37. Qe2 {[%emt 0:00:11]} Qd5 {[%emt 0:08:01]} 38. Qe3 {[%emt 0:00:06]} Nb6 {[%emt 0:01:59]} 39. Nf2 {[%emt 0:01:39]} Qd8 {[%emt 0:00:20]} 40. g3 {[%emt 0:00:00]} Nd5 {[%emt 0:00:00]} 41. Qe2 {[%emt 0:06:36]} Nb6 42. Qe3 {[%emt 0:00:14]} Nd5 {[%emt 0:03:35]} 43. Qe2 {[%emt 0:00:30]} Nb6 {[%emt 0:00:04]} 44. Qe3 {[%emt 0:00:09]} Nd5 {[%emt 0:00:08]} 1/2-1/2

[Event "POL-chT DMP Ekstraliga 2019"]
[Site "Katowice"]
[Date "2019.08.29"]
[Round "2.14"]
[White "Leniart, Arkadiusz"]
[Black "Mastrovasilis, Dimitrios"]
[Result "0-1"]
[ECO "D15"]
[WhiteElo "2488"]
[BlackElo "2594"]
[Annotator "ChessBase"]
[PlyCount "82"]
[EventDate "2019.08.28"]
[EventType "team-tourn"]
[EventCountry "POL"]
[SourceTitle "playchess.com"]
[Source "ChessBase"]
[SourceQuality "1"]
[TimeControl "40/5400+30:1800+30"]

1. d4 {[%emt 0:00:00]} d5 {[%emt 0:00:00]} 2. c4 {[%emt 0:00:00]} c6 {[%emt 0:00:00]} 3. Nf3 {[%emt 0:00:00]} Nf6 {[%emt 0:00:07]} 4. Nc3 {[%emt 0:00:00]} dxc4 {[%emt 0:00:27]} 5. e4 {[%emt 0:00:00]} b5 {[%emt 0:00:38]} 6. a4 {[%emt 0:00:00]} b4 7. Na2 {[%emt 0:00:04]} Nxe4 {[%emt 0:07:31]} 8. Bxc4 {[%emt 0:00:04]} e6 {[%emt 0:01:23]} 9. O-O {[%emt 0:00:07]} Be7 {[%emt 0:00:45]} 10. Re1 {[%emt 0:00:05]} Nf6 {[%emt 0:00:59]} 11. Bg5 {[%emt 0:00:11]} Nbd7 12. Nc1 {[%emt 0:16:58]} O-O {[%emt 0:27:32]} 13. Nb3 {[%emt 0:03:29]} Bb7 {[%emt 0:06:58]} 14. Qe2 {[%emt 0:08:20]} c5 {[%emt 0:10:18]} 15. Bxf6 {[%emt 0:19:08]} Bxf6 {[%emt 0:01:31]} 16. dxc5 {[%emt 0:00:52]} Qe7 {[%emt 0:06:29]} 17. c6 {[%emt 0:02:22]} Bxc6 {[%emt 0:00:07]} 18. Nfd4 {[%emt 0:00:16]} Bxd4 {[%emt 0:12:35]} 19. Nxd4 {[%emt 0:00:04]} Rac8 {[%emt 0:00:40]} 20. Rad1 {[%emt 0:07:43]} Nc5 {[%emt 0:03:09]} 21. Qh5 {[%emt 0:10:37]} g6 {[%emt 0:01:34]} 22. Qe5 {[%emt 0:03:50]} Bxa4 {[%emt 0:06:36]} 23. b3 {[%emt 0:04:52]} Bc6 {[%emt 0:01:45]} 24. f4 {[%emt 0:03:29]} Ba8 {[%emt 0:01:52]} 25. Nb5 {[%emt 0:05:41]} Rcd8 {[%emt 0:02:43]} 26. Nd6 {[%emt 0:01:15]} Nd7 {[%emt 0:00:05]} 27. Qa1 {[%emt 0:04:58]} Nf6 {[%emt 0:02:25]} 28. Qe5 {[%emt 0:02:07]} Bd5 {[%emt 0:00:35]} 29. Bxd5 {[%emt 0:00:42]} Rxd6 {[%emt 0:00:54]} 30. Bf3 {[%emt 0:00:28]} Rxd1 {[%emt 0:00:49]} 31. Rxd1 {[%emt 0:00:04]} Rd8 {[%emt 0:00:31]} 32. Rxd8+ {[%emt 0:00:43]} Qxd8 {[%emt 0:00:03]} 33. g4 {[%emt 0:00:32]} Nd7 {[%emt 0:01:31]} 34. Qe4 {[%emt 0:00:07]} Qb6+ {[%emt 0:01:54]} 35. Kg2 {[%emt 0:00:07]} Qc5 {[%emt 0:00:49]} 36. g5 {[%emt 0:00:26]} Qc3 {[%emt 0:00:57]} 37. Qa8+ {[%emt 0:00:28]} Kg7 {[%emt 0:00:59]} 38. Qxa7 {[%emt 0:00:07]} Nc5 {[%emt 0:00:15]} 39. h4 {[%emt 0:00:30]} Nd3 {[%emt 0:01:03]} 40. Kg3 {[%emt 0:00:00]} Qe1+ {[%emt 0:00:00]} 41. Kg4 {[%emt 0:02:04]} Nf2+ {[%emt 0:01:03]} 0-1

[Event "POL-chT DMP Ekstraliga 2019"]
[Site "Katowice"]
[Date "2019.08.29"]
[Round "2.15"]
[White "Tazbir, Marcin"]
[Black "Druska, Juraj"]
[Result "1/2-1/2"]
[ECO "B40"]
[WhiteElo "2521"]
[BlackElo "2460"]
[Annotator "ChessBase"]
[PlyCount "25"]
[EventDate "2019.08.28"]
[EventType "team-tourn"]
[EventCountry "POL"]
[SourceTitle "playchess.com"]
[Source "ChessBase"]
[SourceQuality "1"]
[TimeControl "40/5400+30:1800+30"]

1. e4 {[%emt 0:00:00]} c5 {[%emt 0:00:00]} 2. Nf3 {[%emt 0:00:00]} e6 {[%emt 0:00:01]} 3. d3 {[%emt 0:01:36]} Nc6 {[%emt 0:00:26]} 4. g3 {[%emt 0:00:07]} d5 {[%emt 0:00:10]} 5. Qe2 {[%emt 0:00:07]} Nf6 {[%emt 0:00:08]} 6. Bg2 {[%emt 0:00:05]} Be7 {[%emt 0:00:04]} 7. O-O {[%emt 0:00:08]} b5 {[%emt 0:00:04]} 8. e5 {[%emt 0:03:00]} Nd7 {[%emt 0:01:04]} 9. c4 {[%emt 0:00:28]} bxc4 {[%emt 0:03:26]} 10. dxc4 {[%emt 0:00:31]} Ba6 {[%emt 0:07:47]} 11. Na3 {[%emt 0:02:54]} O-O {[%emt 0:08:05]} 12. Re1 Rb8 {[%emt 0:26:43]} 13. h4 {[%emt 0:31:43]} 1/2-1/2